{"text_format":"3","workbook":"xlsx","n_sheets":6,"sheets":["Log chiamate di vendita","Informazioni di contatto","Preliminari chiamata","Prima chiamata","Informazioni vendita","Follow up"],"not_rendered":{"defined_names":14},"read":"whole","date_system":"1900"}

{"sheet":"Log chiamate di vendita","index":0,"n_rows":13,"n_cols":7,"rows_kept":13}
[null," Nome società"]
[null,"Log chiamate di vendita"]
[null,"N. chiamata","Cliente","Società","Data","Ora","Note"]
[null,1,"Diego Sagese",{"$f":"IF(LogChiamateDiVendita[[#This Row],[Cliente]]=\"\",\"\",IFERROR(VLOOKUP(LogChiamateDiVendita[[#This Row],[Cliente]],InformazioniDiContattoClienti[],2,0),\"Not Found\"))","v":"Proseware, Inc."},{"$f":"TODAY()-5","v":"2016-10-16"},"08:30:00"]
[null,2,"Mattia Trentini",{"$f":"IF(LogChiamateDiVendita[[#This Row],[Cliente]]=\"\",\"\",IFERROR(VLOOKUP(LogChiamateDiVendita[[#This Row],[Cliente]],InformazioniDiContattoClienti[],2,0),\"Not Found\"))","v":"Litware, Inc."},{"$f":"TODAY()-5","v":"2016-10-16"},"09:00:00"]
[null,3,"Cataldo Capon",{"$f":"IF(LogChiamateDiVendita[[#This Row],[Cliente]]=\"\",\"\",IFERROR(VLOOKUP(LogChiamateDiVendita[[#This Row],[Cliente]],InformazioniDiContattoClienti[],2,0),\"Not Found\"))","v":"Northwind Traders"},"2016-10-16","09:30:00"]
[null,4,"Adalberto Udinese",{"$f":"IF(LogChiamateDiVendita[[#This Row],[Cliente]]=\"\",\"\",IFERROR(VLOOKUP(LogChiamateDiVendita[[#This Row],[Cliente]],InformazioniDiContattoClienti[],2,0),\"Not Found\"))","v":"Lucerne Publishing"},"2016-10-16","10:00:00"]
[null,5,"Gerardino Longo",{"$f":"IF(LogChiamateDiVendita[[#This Row],[Cliente]]=\"\",\"\",IFERROR(VLOOKUP(LogChiamateDiVendita[[#This Row],[Cliente]],InformazioniDiContattoClienti[],2,0),\"Not Found\"))","v":"Margie's Travel"},"2016-10-16","10:30:00"]
[null,6,"Diego Sagese",{"$f":"IF(LogChiamateDiVendita[[#This Row],[Cliente]]=\"\",\"\",IFERROR(VLOOKUP(LogChiamateDiVendita[[#This Row],[Cliente]],InformazioniDiContattoClienti[],2,0),\"Not Found\"))","v":"Proseware, Inc."},{"$f":"TODAY()-3","v":"2016-10-18"},"11:00:00"]
[null,7,"Mattia Trentini",{"$f":"IF(LogChiamateDiVendita[[#This Row],[Cliente]]=\"\",\"\",IFERROR(VLOOKUP(LogChiamateDiVendita[[#This Row],[Cliente]],InformazioniDiContattoClienti[],2,0),\"Not Found\"))","v":"Litware, Inc."},{"$f":"TODAY()-3","v":"2016-10-18"},"11:30:00"]
[null,8,"Diego Sagese",{"$f":"IF(LogChiamateDiVendita[[#This Row],[Cliente]]=\"\",\"\",IFERROR(VLOOKUP(LogChiamateDiVendita[[#This Row],[Cliente]],InformazioniDiContattoClienti[],2,0),\"Not Found\"))","v":"Proseware, Inc."},{"$f":"TODAY()-1","v":"2016-10-20"},"12:00:00"]
[null,9,"Gerardino Longo",{"$f":"IF(LogChiamateDiVendita[[#This Row],[Cliente]]=\"\",\"\",IFERROR(VLOOKUP(LogChiamateDiVendita[[#This Row],[Cliente]],InformazioniDiContattoClienti[],2,0),\"Not Found\"))","v":"Margie's Travel"},{"$f":"TODAY()-1","v":"2016-10-20"},"12:30:00"]
[null,10,"Gerardino Longo",{"$f":"IF(LogChiamateDiVendita[[#This Row],[Cliente]]=\"\",\"\",IFERROR(VLOOKUP(LogChiamateDiVendita[[#This Row],[Cliente]],InformazioniDiContattoClienti[],2,0),\"Not Found\"))","v":"Margie's Travel"},{"$f":"TODAY()","v":"2016-10-21"},"13:00:00"]

{"sheet":"Informazioni di contatto","index":1,"n_rows":8,"n_cols":8,"rows_kept":8}
[null,{"$f":"NomeSocietà","v":" Nome società"}]
[null,"Informazioni di contatto"]
[null,"Nome cliente","Nome società","Indirizzo","CAP città (provincia)","Telefono principale","Telefono secondario","Indirizzo di posta elettronica"]
[null,"Mattia Trentini","Litware, Inc.","Via Lunedì 100","00100 Roma (RM)","06 1234567","06 1234566","mattia@litwareinc.com"]
[null,"Adalberto Udinese","Lucerne Publishing","Piazza Martedì 567","20100 Milano (MI)","02 2345678","02 2345677","adalberto@lucernepublishing.com"]
[null,"Gerardino Longo","Margie's Travel","Viale Mercoledì 987","16100 Genova (GE)","010 3456789","010 3456789","gerardino@margiestravel.com"]
[null,"Cataldo Capon","Northwind Traders","Via Giovedì 890","50100 Firenze (FI)","050 4567890","050 4567899","cataldo@northwindtraders.com"]
[null,"Diego Sagese","Proseware, Inc.","Piazza Venerdì 123","80100 Napoli (NA)","081 5678901","081 5678900","diego@proseware.com"]

{"sheet":"Preliminari chiamata","index":2,"n_rows":13,"n_cols":3,"rows_kept":13}
[null,{"$f":"NomeSocietà","v":" Nome società"}]
[null,"Elenco di controllo Chiamate di vendita"]
[null,"Casella di controllo","Preliminari chiamata"]
[null,null,"Revisione della storia cliente"]
[null,null,"Revisione della storia del datore di lavoro cliente"]
[null,null,"Revisione delle priorità e della strategia di vendita"]
[null,null,"Aggiungi elemento"]
[null,null,"Aggiungi elemento"]
[null,null,"Aggiungi elemento"]
[null,null,"Aggiungi elemento"]
[null,null,"Aggiungi elemento"]
[null,null,"Aggiungi elemento"]
[null,null,"Aggiungi elemento"]

{"sheet":"Prima chiamata","index":3,"n_rows":13,"n_cols":3,"rows_kept":13}
[null,{"$f":"NomeSocietà","v":" Nome società"}]
[null,"Elenco di controllo Chiamate di vendita"]
[null,"Casella di controllo","Prima chiamata"]
[null,null,"Chiamata diretta alla persona appropriata"]
[null,null,"Introduzione chiara"]
[null,null,"Aggiungi elemento"]
[null,null,"Aggiungi elemento"]
[null,null,"Aggiungi elemento"]
[null,null,"Aggiungi elemento"]
[null,null,"Aggiungi elemento"]
[null,null,"Aggiungi elemento"]
[null,null,"Aggiungi elemento"]
[null,null,"Aggiungi elemento"]

{"sheet":"Informazioni vendita","index":4,"n_rows":13,"n_cols":3,"rows_kept":13}
[null,{"$f":"NomeSocietà","v":" Nome società"}]
[null,"Elenco di controllo Chiamate di vendita"]
[null,"Casella di controllo","Informazioni vendita"]
[null,null,"Introduzione chiara e convincente sul prodotto/servizio"]
[null,null,"Descrizione di tutti gli elementi essenziali"]
[null,null,"Citazione della presenza sul Web (ad es. sito Web, social network)"]
[null,null,"Aggiungi elemento"]
[null,null,"Aggiungi elemento"]
[null,null,"Aggiungi elemento"]
[null,null,"Aggiungi elemento"]
[null,null,"Aggiungi elemento"]
[null,null,"Aggiungi elemento"]
[null,null,"Aggiungi elemento"]

{"sheet":"Follow up","index":5,"n_rows":13,"n_cols":3,"rows_kept":13}
[null,{"$f":"NomeSocietà","v":" Nome società"}]
[null,"Elenco di controllo Chiamate di vendita"]
[null,"Casella di controllo","Informazioni di follow up"]
[null,null,"Informazioni di contatto del cliente"]
[null,null,"Informazioni personali del cliente"]
[null,null,"Preferenze del cliente"]
[null,null,"Ripianificare il contatto?"]
[null,null,"Vendita effettuata?"]
[null,null,"Aggiungi elemento"]
[null,null,"Aggiungi elemento"]
[null,null,"Aggiungi elemento"]
[null,null,"Aggiungi elemento"]
[null,null,"Aggiungi elemento"]